fUSD/lending_fUSD_20250507
["ID","MTS","AMOUNT","RATE_DAILY","PERIOD"]
[360226164,1746637847875,-450.0,0.00019982,2]
[360226165,1746637847885,-450.0,0.00019982,2]
[360226166,1746637847897,-450.0,0.00019982,2]
[360226167,1746637847908,-450.0,0.00019982,2]
[360226168,1746637847919,-522.59847802,0.00019982,2]
[360226169,1746637847930,-450.0,0.00019982,2]
[360226170,1746637847939,-566.13,0.00019982,2]
[360226171,1746637847950,-571.11,0.00019982,2]
[360226172,1746637847960,-450.0,0.00019982,2]
[360226173,1746637847971,-450.0,0.00019982,2]
[360226174,1746637847980,-450.0,0.00019982,2]
[360226175,1746637847990,-450.0,0.00019982,2]
[360226176,1746637848000,-450.0,0.00019982,2]
[360226177,1746637848010,-450.0,0.00019982,2]
[360226178,1746637848020,-450.0,0.00019982,2]
[360226179,1746637848029,-450.0,0.00019982,2]
[360226180,1746637848040,-2125.43,0.00019982,2]
[360226181,1746637848050,-456.28121955,0.00019982,2]
[360226182,1746637848060,-595.09,0.00019982,2]
[360226183,1746637848070,-450.0,0.00019982,2]
[360226184,1746637848081,-450.0,0.00019982,2]
[360226185,1746637848091,-450.0,0.00019982,2]
[360226186,1746637848101,-647.36,0.00019982,2]
[360226187,1746637848111,-150.0,0.00019982,2]
[360226188,1746637848121,-516.9,0.00019982,2]
[360226189,1746637848132,-450.0,0.00019982,2]
[360226190,1746637848141,-450.0,0.00019982,2]
[360226191,1746637848151,-151.0,0.00019982,2]
[360226192,1746637848162,-854.35,0.00019982,2]
[360226193,1746637848172,-450.0,0.00019982,2]
[360226194,1746637848183,-450.0,0.00019982,2]
[360226195,1746637848193,-450.0,0.00019982,2]
[360226196,1746637848204,-151.0,0.00019982,2]
[360226197,1746637848214,-450.0,0.00019982,2]
[360226198,1746637848224,-17983.52,0.00019982,2]
[360226199,1746637848234,-450.0,0.00019982,2]
[360226200,1746637848244,-334.41,0.00019982,2]
[360226201,1746637848254,-392.80773028,0.00019982,2]
[360226202,1746637848264,-450.0,0.00019982,2]
[360226203,1746637848274,-450.0,0.00019982,2]
[360226204,1746637848284,-450.0,0.00019982,2]
[360226205,1746637848295,-151.0,0.00019982,2]
[360226206,1746637848305,-450.0,0.00019982,2]
[360226207,1746637848315,-264.466504,0.00019982,2]
[360226208,1746637848325,-549.53,0.00019982,2]
[360226209,1746637848335,-450.0,0.00019982,2]
[360226210,1746637848345,-450.0,0.00019982,2]
[360226211,1746637848355,-2967.96,0.00019982,2]
[360226212,1746637848365,-166.065345,0.00019982,2]
[360226213,1746637848375,-450.0,0.00019982,2]
[360226214,1746637848385,-450.0,0.00019983,2]
[360226215,1746637848395,-450.0,0.00019983,2]
[360226216,1746637848409,-450.0,0.00019983,2]
[360226217,1746637848419,-450.0,0.00019983,2]
[360226218,1746637848428,-450.0,0.00019983,2]
[360226219,1746637848438,-450.0,0.00019983,2]
[360226220,1746637848450,-450.0,0.00019983,2]
[360226221,1746637848459,-450.0,0.00019983,2]
[360226222,1746637848469,-450.0,0.00019983,2]
[360226223,1746637848480,-450.0,0.00019983,2]
[360226224,1746637848490,-165.38287042,0.00019983,2]
[360226225,1746637848499,-450.0,0.00019983,2]
[360226226,1746637848509,-450.0,0.00019983,2]
[360226227,1746637848519,-450.0,0.00019983,2]
[360226228,1746637848529,-987.11,0.00019983,2]
[360226229,1746637848539,-450.0,0.00019983,2]
[360226230,1746637848548,-450.0,0.00019983,2]
[360226231,1746637848558,-450.0,0.00019983,2]
[360226232,1746637848568,-450.0,0.00019983,2]
[360226233,1746637848578,-508.53065181,0.00019983,2]
[360226234,1746637848587,-459.66,0.00019983,2]
[360226235,1746637848598,-384.36,0.00019983,2]
[360226236,1746637848608,-450.0,0.00019983,2]
[360226237,1746637848618,-450.0,0.00019983,2]
[360226238,1746637848628,-450.0,0.00019983,2]
[360226239,1746637848637,-1000.0,0.00019983,2]
[360226240,1746637848647,-450.0,0.00019983,2]
[360226241,1746637848657,-672.87,0.00019983,2]
[360226242,1746637848667,-450.0,0.00019983,2]
[360226243,1746637848676,-450.0,0.00019983,2]
[360226244,1746637848686,-1201.25,0.00019983,2]
[360226245,1746637848696,-4113.14,0.00019983,2]
[360226246,1746637848706,-450.0,0.00019983,2]
[360226247,1746637848715,-450.0,0.00019983,2]
[360226248,1746637848726,-450.0,0.00019983,2]
[360226249,1746637848736,-450.0,0.00019983,2]
[360226250,1746637848746,-450.0,0.00019983,2]
[360226251,1746637848755,-450.0,0.00019983,2]
[360226252,1746637848765,-450.0,0.00019983,2]
[360226253,1746637848776,-450.0,0.00019983,2]
[360226254,1746637848786,-450.0,0.00019983,2]
[360226255,1746637848796,-450.0,0.00019983,2]
[360226256,1746637848806,-450.0,0.00019983,2]
[360226257,1746637848815,-450.0,0.00019983,2]
[360226258,1746637848826,-1036.56,0.00019983,2]
[360226259,1746637848835,-503.78,0.00019983,2]
[360226260,1746637848846,-25365.100723,0.00019983,2]
[360226261,1746637848855,-339.36,0.00019983,2]
[360226262,1746637848865,-450.0,0.00019983,2]
[360226263,1746637848875,-1842.083535,0.00019983,2]
[360226264,1746637848885,-450.0,0.00019983,2]
[360226265,1746637848895,-470.34,0.00019983,2]
[360226266,1746637848904,-450.0,0.00019983,2]
[360226267,1746637848914,-450.0,0.00019983,2]
[360226268,1746637848924,-300.0,0.00019984,2]
[360226269,1746637848935,-450.0,0.00019984,2]
[360226270,1746637848944,-202.31,0.00019984,2]
[360226271,1746637848954,-450.0,0.00019984,2]
[360226272,1746637848965,-450.0,0.00019984,2]
[360226273,1746637848974,-450.0,0.00019984,2]
[360226274,1746637848984,-420.72,0.00019984,2]
[360226275,1746637848994,-450.0,0.00019984,2]
[360226276,1746637849004,-450.0,0.00019984,2]
[360226277,1746637849014,-450.0,0.00019984,2]
[360226278,1746637849024,-450.0,0.00019984,2]
[360226279,1746637849034,-987.11,0.00019984,2]
[360226280,1746637849044,-450.0,0.00019984,2]
[360226281,1746637849055,-450.0,0.00019984,2]
[360226282,1746637849065,-450.0,0.00019984,2]
[360226283,1746637849075,-450.0,0.00019984,2]
[360226284,1746637849085,-450.0,0.00019984,2]
[360226285,1746637849095,-450.0,0.00019984,2]
[360226286,1746637849105,-450.0,0.00019984,2]
[360226287,1746637849115,-450.0,0.00019984,2]
[360226288,1746637849125,-450.0,0.00019984,2]
[360226289,1746637849138,-450.0,0.00019984,2]
[360226290,1746637849148,-450.0,0.00019984,2]
[360226291,1746637849158,-216.69107073,0.00019984,2]
[360226292,1746637849170,-450.0,0.00019984,2]
[360226293,1746637849180,-450.0,0.00019984,2]
[360226294,1746637849190,-258.68,0.00019984,2]
[360226295,1746637849200,-469.8,0.00019984,2]
[360226296,1746637849211,-450.0,0.00019984,2]
[360226297,1746637849220,-221.36431222,0.00019984,2]
[360226298,1746637849230,-459.66,0.00019984,2]
[360226299,1746637849239,-450.0,0.00019984,2]
[360226300,1746637849249,-450.0,0.00019984,2]
[360226301,1746637849260,-450.0,0.00019984,2]
[360226302,1746637849270,-450.0,0.00019984,2]
[360226303,1746637849280,-450.0,0.00019984,2]
[360226304,1746637849290,-450.0,0.00019984,2]
[360226305,1746637849301,-450.0,0.00019984,2]
[360226306,1746637849311,-450.0,0.00019984,2]
[360226307,1746637849322,-450.0,0.00019984,2]
[360226308,1746637849333,-450.0,0.00019984,2]
[360226309,1746637849346,-450.0,0.00019984,2]
[360226310,1746637849356,-672.87,0.00019984,2]
[360226311,1746637849366,-450.0,0.00019984,2]
[360226312,1746637849376,-12449.94,0.00019984,2]
[360226313,1746637849386,-877.55,0.00019984,2]
[360226314,1746637849396,-450.0,0.00019984,2]
[360226315,1746637849410,-450.0,0.00019984,2]
[360226316,1746637849420,-411.33,0.00019984,2]
[360226317,1746637849430,-4113.14,0.00019984,2]
[360226318,1746637849440,-414.0589024,0.00019984,2]
[360226319,1746637849451,-304.08,0.00019984,2]
[360226320,1746637849461,-450.0,0.00019984,2]
[360226321,1746637849471,-450.0,0.00019984,2]
[360226322,1746637849482,-450.0,0.00019984,2]
[360226323,1746637849491,-450.0,0.00019984,2]
[360226324,1746637849502,-500.0,0.00019984,2]
[360226325,1746637849511,-450.0,0.00019984,2]
[360226326,1746637849521,-299.78,0.00019984,2]
[360226327,1746637849531,-295.77,0.00019984,2]
[360226328,1746637849540,-450.0,0.00019984,2]
[360226329,1746637849551,-566.13,0.00019984,2]
[360226330,1746637849560,-450.0,0.00019984,2]
[360226331,1746637849570,-571.11,0.00019984,2]
[360226332,1746637849580,-450.0,0.00019984,2]
[360226333,1746637849590,-450.0,0.00019984,2]
[360226334,1746637849600,-233.04,0.00019984,2]
[360226335,1746637849609,-450.0,0.00019984,2]
[360226336,1746637849619,-450.0,0.00019984,2]
[360226337,1746637849629,-450.0,0.00019984,2]
[360226338,1746637849638,-450.0,0.00019984,2]
[360226339,1746637849648,-450.0,0.00019984,2]
[360226340,1746637849657,-450.0,0.00019984,2]
[360226341,1746637849667,-369.33,0.00019984,2]
[360226342,1746637849677,-450.0,0.00019984,2]
[360226343,1746637849881,-426.41,0.00019984,2]
[360226344,1746637849892,-275.8883073,0.00019984,2]
[360226345,1746637849902,-450.0,0.00019984,2]
[360226346,1746637849912,-450.0,0.00019984,2]
[360226347,1746637849922,-450.0,0.00019984,2]
[360226348,1746637849931,-450.0,0.00019984,2]
[360226349,1746637849941,-450.0,0.00019984,2]
[360226350,1746637849951,-450.0,0.00019984,2]
[360226351,1746637849961,-515.64,0.00019984,2]
[360226352,1746637849970,-450.0,0.00019984,2]
[360226353,1746637849980,-2125.43,0.00019984,2]
[360226354,1746637849991,-450.0,0.00019984,2]
[360226355,1746637850001,-450.0,0.00019984,2]
[360226356,1746637850011,-450.0,0.00019984,2]
[360226357,1746637850021,-450.0,0.00019984,2]
[360226358,1746637850031,-450.0,0.00019984,2]
[360226359,1746637850040,-699.02,0.00019984,2]
[360226360,1746637850051,-450.0,0.00019984,2]
[360226361,1746637850060,-595.09,0.00019984,2]
[360226362,1746637850070,-450.0,0.00019984,2]
[360226363,1746637850079,-699.02,0.00019984,2]
[360226364,1746637850090,-450.0,0.00019984,2]
[360226365,1746637850099,-430.23,0.00019984,2]
[360226366,1746637850109,-450.0,0.00019984,2]
[360226367,1746637850120,-647.36,0.00019984,2]
[360226368,1746637850130,-450.0,0.00019984,2]
[360226369,1746637850141,-450.0,0.00019984,2]
[360226370,1746637850151,-516.9,0.00019984,2]
[360226371,1746637850160,-450.0,0.00019984,2]
[360226372,1746637850170,-151.0,0.00019984,2]
[360226373,1746637850179,-450.0,0.00019984,2]
[360226374,1746637850190,-491.36217211,0.00019984,2]
[360226375,1746637850199,-225.107516,0.00019984,2]
[360226376,1746637850209,-450.0,0.00019984,2]
[360226377,1746637850219,-450.0,0.00019984,2]
[360226378,1746637850228,-450.0,0.00019984,2]
[360226379,1746637850238,-151.0,0.00019984,2]
[360226380,1746637850247,-450.0,0.00019984,2]
[360226381,1746637850257,-332.03,0.00019984,2]
[360226382,1746637850266,-450.0,0.00019984,2]
[360226383,1746637850276,-450.0,0.00019984,2]
[360226384,1746637850285,-854.35,0.00019984,2]
[360226385,1746637850294,-468.28,0.00019984,2]
[360226386,1746637850303,-1629.11,0.00019984,2]
[360226387,1746637850312,-450.0,0.00019984,2]
[360226388,1746637850322,-450.0,0.00019984,2]
[360226389,1746637850331,-450.0,0.00019984,2]
[360226390,1746637850342,-151.0,0.00019984,2]
[360226391,1746637850352,-450.0,0.00019984,2]
[360226392,1746637850363,-17983.52,0.00019984,2]
[360226393,1746637850374,-1036.56,0.00019984,2]
[360226394,1746637850383,-151.0,0.00019984,2]
[360226395,1746637850393,-450.0,0.00019984,2]
[360226396,1746637850406,-151.0,0.00019984,2]
[360226397,1746637850416,-450.0,0.00019984,2]
[360226398,1746637850426,-450.0,0.00019984,2]
[360226399,1746637850435,-151.0,0.00019984,2]
[360226400,1746637850447,-328.34,0.00019984,2]
[360226401,1746637850457,-549.53,0.00019984,2]
[360226402,1746637850467,-450.0,0.00019984,2]
[360226403,1746637850479,-470.34,0.00019984,2]
[360226404,1746637850489,-450.0,0.00019984,2]
[360226405,1746637850500,-2967.96,0.00019984,2]
[360226406,1746637850510,-450.0,0.00019984,2]
[360226407,1746637850519,-828.78,0.00019984,2]
[360226408,1746637850530,-450.0,0.00019984,2]
[360226409,1746637850541,-300.0,0.00019984,2]
[360226410,1746637850553,-265.89128322,0.00019984,2]
[360226411,1746637850562,-341703.9448863,0.00019985,2]
[360226412,1746637850581,-94491.67109251,0.00019985,2]
[360226413,1746637850614,-440.20976979,0.00019985,2]
[360226414,1746637850631,-1027.56821419,0.00019985,2]
[360226415,1746637850641,-300.0,0.00019985,2]
[360226416,1746637850653,-267.8124,0.00019985,2]
[360226417,1746637850663,-267.8124,0.00019985,2]
[360226418,1746637850673,-267.8124,0.00019985,2]
[360226419,1746637850683,-123.28661645,0.00019985,2]
[360226420,1746637850695,-326.71338355,0.00019985,2]
[360226421,1746637850706,-394.664012,0.00019985,2]
[360226422,1746637850716,-394.664012,0.00019985,2]
[360226423,1746637850726,-450.0,0.00019985,2]
[360226424,1746637850737,-394.664012,0.00019985,2]
[360226425,1746637850747,-394.664012,0.00019985,2]
[360226426,1746637850758,-151.0,0.00019985,2]
[360226427,1746637850768,-450.0,0.00019985,2]
[360226428,1746637850778,-151.0,0.00019985,2]
[360226429,1746637850788,-237.931586,0.00019985,2]
[360226430,1746637850799,-450.0,0.00019985,2]
[360226431,1746637850810,-450.0,0.00019985,2]
[360226432,1746637850820,-151.0,0.00019985,2]
[360226433,1746637850831,-450.0,0.00019985,2]
[360226434,1746637850841,-151.0,0.00019985,2]
[360226435,1746637850852,-987.11,0.00019985,2]
[360226436,1746637850862,-151.0,0.00019985,2]
[360226437,1746637850871,-151.0,0.00019985,2]
[360226438,1746637850881,-151.0,0.00019985,2]
[360226439,1746637850891,-151.0,0.00019985,2]
[360226440,1746637850902,-151.0,0.00019985,2]
[360226441,1746637850914,-151.0,0.00019985,2]
[360226442,1746637850924,-1161.268549,0.00019985,2]
[360226443,1746637850934,-1161.268549,0.00019985,2]
[360226444,1746637850946,-292.98971578,0.00019985,2]
[360226445,1746637850955,-1161.268549,0.00019985,2]
[360226446,1746637850965,-151.0,0.00019985,2]
[360226447,1746637850975,-1161.268549,0.00019985,2]
[360226448,1746637850985,-151.0,0.00019985,2]
[360226449,1746637850995,-151.0,0.00019985,2]
[360226450,1746637851006,-296.949266,0.00019985,2]
[360226451,1746637851015,-151.0,0.00019985,2]
[360226452,1746637851025,-283.787016,0.00019985,2]
[360226453,1746637851035,-283.787016,0.00019985,2]
[360226454,1746637851046,-151.0,0.00019985,2]
[360226455,1746637851057,-151.0,0.00019985,2]
[360226456,1746637851067,-283.787016,0.00019985,2]
[360226457,1746637851077,-283.787016,0.00019985,2]
[360226458,1746637851086,-152.452822,0.00019985,2]
[360226459,1746637851095,-450.0,0.00019985,2]
[360226460,1746637851105,-232.38456505,0.00019985,2]
[360226461,1746637851115,-151.0,0.00019985,2]
[360226462,1746637851126,-450.0,0.00019985,2]
[360226463,1746637851136,-167.903956,0.00019985,2]
[360226464,1746637851146,-450.0,0.00019985,2]
[360226465,1746637851156,-450.0,0.00019985,2]
[360226466,1746637851166,-151.0,0.00019985,2]
[360226467,1746637851176,-151.0,0.00019985,2]
[360226468,1746637851188,-450.0,0.00019985,2]
[360226469,1746637851198,-450.0,0.00019985,2]
[360226470,1746637851208,-450.0,0.00019985,2]
[360226471,1746637851219,-450.0,0.00019985,2]
[360226472,1746637851229,-450.0,0.00019985,2]
[360226473,1746637851240,-450.0,0.00019985,2]
[360226474,1746637851251,-472.08,0.00019985,2]
[360226475,1746637851261,-253.91,0.00019985,2]
[360226476,1746637851270,-151.460505,0.00019985,2]
[360226477,1746637851280,-520.56,0.00019985,2]
[360226478,1746637851289,-459.66,0.00019985,2]
[360226479,1746637851298,-459.66,0.00019985,2]
[360226480,1746637851307,-459.66,0.00019985,2]
[360226481,1746637851317,-151.0,0.00019985,2]
[360226482,1746637851326,-151.0,0.00019985,2]
[360226483,1746637851336,-450.0,0.00019985,2]
[360226484,1746637851346,-151.0,0.00019985,2]
[360226485,1746637851355,-196.09,0.00019985,2]
[360226486,1746637851364,-151.0,0.00019985,2]
[360226487,1746637851374,-151.0,0.00019985,2]
[360226488,1746637851383,-151.0,0.00019985,2]
[360226489,1746637851394,-151.0,0.00019985,2]
[360226490,1746637851408,-151.0,0.00019985,2]
[360226491,1746637851418,-151.0,0.00019985,2]
[360226492,1746637851428,-151.0,0.00019985,2]
[360226493,1746637851439,-151.0,0.00019985,2]
[360226494,1746637851449,-450.0,0.00019985,2]
[360226495,1746637851459,-151.0,0.00019985,2]
[360226496,1746637851472,-151.0,0.00019985,2]
[360226497,1746637851485,-294.134571,0.00019985,2]
[360226498,1746637851496,-294.134571,0.00019985,2]
[360226499,1746637851506,-294.134571,0.00019985,2]
[360226500,1746637851515,-294.134571,0.00019985,2]
[360226501,1746637851525,-616.591664,0.00019985,2]
[360226502,1746637851535,-616.591664,0.00019985,2]
[360226503,1746637851545,-616.591664,0.00019985,2]
[360226504,1746637851555,-616.591664,0.00019985,2]
[360226505,1746637851564,-151.0,0.00019985,2]
[360226506,1746637851574,-151.0,0.00019985,2]
[360226507,1746637851584,-151.0,0.00019985,2]
[360226508,1746637851594,-284.609341,0.00019985,2]
[360226509,1746637851605,-154.258822,0.00019985,2]
[360226510,1746637851615,-526.54599095,0.00019985,2]
[360226511,1746637851626,-151.0,0.00019985,2]
[360226512,1746637851638,-151.0,0.00019985,2]
[360226513,1746637851648,-450.0,0.00019985,2]
[360226514,1746637851658,-450.0,0.00019985,2]
[360226515,1746637851668,-450.0,0.00019985,2]
[360226516,1746637851680,-151.0,0.00019985,2]
[360226517,1746637851691,-151.0,0.00019985,2]
[360226518,1746637851700,-151.0,0.00019985,2]
[360226519,1746637851710,-154.649089,0.00019985,2]
[360226520,1746637851719,-450.0,0.00019985,2]
[360226521,1746637851730,-450.0,0.00019985,2]
[360226522,1746637851741,-450.0,0.00019985,2]
[360226523,1746637851752,-151.0,0.00019985,2]
[360226524,1746637851762,-151.0,0.00019985,2]
[360226525,1746637851772,-151.0,0.00019985,2]
[360226526,1746637851783,-151.0,0.00019985,2]
[360226527,1746637851794,-151.0,0.00019985,2]
[360226528,1746637851804,-151.0,0.00019985,2]
[360226529,1746637851813,-151.0,0.00019985,2]
[360226530,1746637851822,-150.0,0.00019985,2]
[360226531,1746637851831,-151.0,0.00019985,2]
[360226532,1746637851841,-151.0,0.00019985,2]
[360226533,1746637851850,-151.0,0.00019985,2]
[360226534,1746637851861,-477.173977,0.00019985,2]
[360226535,1746637851871,-151.0,0.00019985,2]
[360226536,1746637851881,-477.173977,0.00019985,2]
[360226537,1746637851891,-151.0,0.00019985,2]
[360226538,1746637851901,-151.0,0.00019985,2]
[360226539,1746637851911,-477.173977,0.00019985,2]
[360226540,1746637851921,-477.173977,0.00019985,2]
[360226541,1746637851931,-450.0,0.00019985,2]
[360226542,1746637851942,-427.58,0.00019985,2]
[360226543,1746637851951,-450.0,0.00019985,2]
[360226544,1746637851960,-450.0,0.00019985,2]
[360226545,1746637851970,-450.0,0.00019985,2]
[360226546,1746637851979,-151.0,0.00019985,2]
[360226547,1746637851990,-151.0,0.00019985,2]
[360226548,1746637851999,-151.0,0.00019985,2]
[360226549,1746637852008,-151.0,0.00019985,2]
[360226550,1746637852019,-151.0,0.00019985,2]
[360226551,1746637852028,-151.0,0.00019985,2]
[360226552,1746637852038,-272.650985,0.00019985,2]
[360226553,1746637852048,-151.0,0.00019985,2]
[360226554,1746637852058,-151.0,0.00019985,2]
[360226555,1746637852068,-151.0,0.00019985,2]
[360226556,1746637852078,-151.0,0.00019985,2]
[360226557,1746637852088,-151.0,0.00019985,2]
[360226558,1746637852098,-450.0,0.00019985,2]
[360226559,1746637852107,-450.0,0.00019985,2]
[360226560,1746637852118,-450.0,0.00019985,2]
[360226561,1746637852128,-151.0,0.00019985,2]
[360226562,1746637852138,-151.0,0.00019985,2]
[360226563,1746637852149,-151.0,0.00019985,2]
[360226564,1746637852159,-151.0,0.00019985,2]
[360226565,1746637852170,-450.0,0.00019985,2]
[360226566,1746637852180,-450.0,0.00019985,2]
[360226567,1746637852189,-450.0,0.00019985,2]
[360226568,1746637852199,-672.87,0.00019985,2]
[360226569,1746637852210,-672.87,0.00019985,2]
[360226570,1746637852220,-672.87,0.00019985,2]
[360226571,1746637852231,-155.13,0.00019985,2]
[360226572,1746637852242,-12449.94,0.00019985,2]
[360226573,1746637852251,-12449.94,0.00019985,2]
[360226574,1746637852262,-12449.94,0.00019985,2]
[360226575,1746637852272,-12449.94,0.00019985,2]
[360226576,1746637852282,-151.0,0.00019985,2]
[360226577,1746637852292,-151.0,0.00019985,2]
[360226578,1746637852302,-151.0,0.00019985,2]
[360226579,1746637852312,-877.55,0.00019985,2]
[360226580,1746637852323,-877.55,0.00019985,2]
[360226581,1746637852334,-877.55,0.00019985,2]
[360226582,1746637852344,-877.55,0.00019985,2]
[360226583,1746637852353,-151.0,0.00019985,2]
[360226584,1746637852364,-151.0,0.00019985,2]
[360226585,1746637852374,-151.0,0.00019985,2]
[360226586,1746637852384,-244.12793952,0.00019985,2]
[360226587,1746637852393,-450.0,0.00019985,2]
[360226588,1746637852408,-450.0,0.00019985,2]
[360226589,1746637852418,-450.0,0.00019985,2]
[360226590,1746637852428,-1201.25,0.00019985,2]
[360226591,1746637852439,-1201.25,0.00019985,2]
[360226592,1746637852451,-1201.25,0.00019985,2]
[360226593,1746637852463,-450.0,0.00019985,2]
[360226594,1746637852473,-450.0,0.00019985,2]
[360226595,1746637852484,-450.0,0.00019985,2]
[360226596,1746637852495,-450.0,0.00019985,2]
[360226597,1746637852504,-6995.04150127,0.00019985,2]
[360226598,1746637877172,500.0,0.0003,30]
[360226599,1746638005462,234.65,0.00018873,2]
[360226600,1746638143221,350.51,0.00018912,2]
[360226601,1746638144102,350.51,0.00026004,120]
[360226602,1746638144312,350.51,0.00028368,120]
[360226603,1746638231235,150.0,0.0003,30]
[360226604,1746638257278,1000.0,0.00018908,2]
[360226606,1746638376827,166.14,0.0001948,2]
[360226607,1746638448677,158.13,0.00018879,2]
[360226608,1746638534384,150.0,0.00018986,7]
[360226609,1746638535859,150.0,0.0003,30]
[360226610,1746638699839,23441.01,0.00018868,2]
[360226611,1746638706777,487.3,0.0003,30]
[360226612,1746638821910,756.6,0.00016953,2]
[360226613,1746638822147,756.6,0.00019217,2]
[360226615,1746638894241,150.0,0.0003,30]
[360226616,1746638897729,3081.65,0.0003013,120]
[360226632,1746639031553,-804.69,0.00019705,2]
[360226633,1746639031659,-339.17912446,0.00019705,2]
[360226634,1746639031716,-356.8723197,0.00019705,2]
[360226635,1746639031773,-2729.8716691,0.00019705,2]
[360226636,1746639031786,-1063.44509394,0.00019705,2]
[360226637,1746639031798,-3466.9925743,0.00019705,2]
[360226693,1746639037566,-6611.7499408,0.00019705,2]
[360226694,1746639037578,-29000.27137754,0.00019705,2]
[360226695,1746639037620,-1491.25330016,0.00019705,2]
[360226696,1746639037631,-253.80697974,0.00019706,2]
[360226697,1746639037640,-200.0,0.00019711,2]
[360226698,1746639037651,-1590.9252,0.00019716,2]
[360226699,1746639037660,-253.80697974,0.00019728,2]
[360226700,1746639037670,-159.0,0.00019729,2]
[360226701,1746639037679,-1200.0,0.00019729,2]
[360226702,1746639037689,-300.0,0.00019729,2]
[360226703,1746639037700,-207.4,0.0001973,2]
[360226704,1746639037710,-200.0,0.0001973,2]
[360226705,1746639037721,-185.40405009,0.0001973,2]
[360226706,1746639037732,-200.0,0.0001973,2]
[360226707,1746639037741,-200.0,0.0001973,2]
[360226708,1746639037751,-200.0,0.0001973,2]
[360226709,1746639037761,-200.0,0.0001973,2]
[360226710,1746639037772,-200.0,0.0001973,2]
[360226711,1746639037783,-200.0,0.0001973,2]
[360226712,1746639037793,-200.0,0.0001973,2]
[360226713,1746639037803,-151.0,0.0001973,2]
[360226714,1746639037814,-668.65185757,0.0001973,2]
[360226715,1746639037823,-200.0,0.0001973,2]
[360226716,1746639037835,-200.0,0.0001973,2]
[360226717,1746639037857,-200.0,0.0001973,2]
[360226718,1746639037868,-200.0,0.0001973,2]
[360226719,1746639037879,-200.0,0.0001973,2]
[360226720,1746639037890,-200.0,0.0001973,2]
[360226721,1746639037907,-200.0,0.0001973,2]
[360226722,1746639037918,-200.0,0.0001973,2]
[360226723,1746639037928,-200.0,0.0001973,2]
[360226724,1746639037938,-228.26223364,0.0001973,2]
[360226725,1746639037950,-151.0,0.0001973,2]
[360226726,1746639037961,-150.0,0.00019739,2]
[360226727,1746639037971,-200.0,0.0001974,2]
[360226728,1746639037983,-500.0,0.00019741,2]
[360226730,1746639037994,-288.34669255,0.00019741,2]
[360226732,1746639038007,-211.65330745,0.00019741,2]
[360226734,1746639038017,-500.0,0.00019741,2]
[360226736,1746639038027,-500.0,0.00019741,2]
[360226738,1746639038038,-500.0,0.00019741,2]
[360226740,1746639038047,-92.56669255,0.00019741,2]
[360226742,1746639038059,-407.43330745,0.00019741,2]